bitfinex-derivatives/quotes_SOLF0:USTF0_20250228
["timestamp","ask_amount","ask_price","bid_price","bid_amount"]
[1740734664974,0.05233554,131.63,131.6,0.05552482]
[1740734666180,7.65533554,131.63,131.6,0.05552482]
[1740734666382,0.05233554,131.63,131.6,0.05552482]
[1740734669592,0.05233554,131.63,131.53,1.9175]
[1740734670084,1.9036,131.65,131.53,1.9175]
[1740734670490,7.6024,131.64,131.56,7.6068]
[1740734670689,1.9036,131.65,131.53,1.9175]
[1740734670885,0.05560096,131.6,131.58,0.05702239]
[1740734671292,1.9036,131.65,131.58,0.05702239]
[1740734671488,0.04893369,131.6,131.58,0.05702239]
[1740734671690,1.9036,131.65,131.58,0.05702239]
[1740734671992,0.05311005,131.6,131.58,7.66262239]
[1740734672191,0.05311005,131.6,131.58,0.05702239]
[1740734672388,1.9036,131.65,131.58,0.05702239]
[1740734672691,0.04793509,131.6,131.58,0.05702239]
[1740734672892,1.9036,131.65,131.58,0.05702239]
[1740734673190,0.0563506,131.6,131.47,13.62]
[1740734673382,1.9036,131.65,131.48,2.4973138]
[1740734673794,7.6045,131.61,131.55,7.6076]
[1740734673989,1.8564,131.6,131.55,7.6076]
[1740734674295,0.05093336,131.59,131.57,0.05603566]
[1740734674483,0.05093336,131.59,131.48,2.4973138]
[1740734674886,9.4615,131.6,131.48,2.4973138]
[1740734675190,1.8564,131.6,131.48,2.4973138]
[1740734675688,1.8564,131.6,131.56,7.6068]
[1740734675988,3.141e-05,131.55,131.48,2.4973138]
[1740734676195,1.9278,131.64,131.49,1.38615029]
[1740734676989,7.6033,131.63,131.56,7.6064]
[1740734677293,1.9278,131.64,131.48,2.4973138]
[1740734677492,0.05087249,131.58,131.55,0.05346238]
[1740734677894,0.05087249,131.58,131.48,2.4973138]
[1740734677895,1.9278,131.64,131.52,7.6091]
[1740734678192,0.04973719,131.58,131.55,0.05794269]
[1740734678393,0.04973719,131.58,131.48,2.4973138]
[1740734678690,13.62,131.6,131.51,7.6094]
[1740734679294,206.72,131.59,131.38,83.37008414]
[1740734679497,3.8257,131.58,131.4,5.4811]
[1740734679691,0.04801963,131.52,131.49,0.05231218]
[1740734679997,2.02701963,131.52,131.49,0.05231218]
[1740734680198,1.979,131.52,131.41,10.42126051]
[1740734680396,2.03144693,131.52,131.49,0.05597558]
[1740734680591,0.05244693,131.52,131.49,0.05597558]
[1740734680797,1.979,131.57,131.46,7.6128]
[1740734680998,1.979,131.57,131.41,10.42126051]
[1740734681198,1.979,131.57,131.49,0.04908633]
[1740734681199,0.05265679,131.52,131.49,0.04908633]
[1740734681696,0.05265679,131.52,131.41,10.42126051]
[1740734681895,0.05265679,131.52,131.49,7.65854179]
[1740734682093,1.979,131.57,131.49,0.04794179]
[1740734682298,1.979,131.57,131.44,13.64]
[1740734682502,0.05689632,131.52,131.44,13.64]
[1740734682999,1.979,131.57,131.44,13.64]
[1740734683000,1.979,131.57,131.49,0.04900143]
[1740734683198,1.8467,131.58,131.49,0.04900143]
[1740734683402,1.9274,131.65,131.45,1.38837692]
[1740734683696,0.05720066,131.54,131.53,7.6087]
[1740734684195,5.7429,131.65,131.46,3.669]
[1740734684397,5.7429,131.65,131.47,3.11660509]
[1740734684601,5.7429,131.65,131.52,0.05765863]
[1740734684602,0.05010485,131.55,131.52,0.05765863]
[1740734684901,0.05010485,131.55,131.49,7.6106]
[1740734685201,7.6072,131.56,131.52,0.05124435]
[1740734685397,0.05048249,131.53,131.52,0.05124435]
[1740734686996,0.05048249,131.53,131.52,7.66054435]
[1740734687195,0.05048249,131.53,131.52,0.05124435]
[1740734689392,0.05048249,131.53,131.52,7.66054435]
[1740734689796,0.05048249,131.53,131.52,0.05124435]
[1740734690397,190.0,131.65,131.52,0.05124435]
[1740734690600,19.3537,131.65,131.56,7.6068]
[1740734690799,19.3537,131.65,131.47,1.7293]
[1740734690800,19.3537,131.65,131.5,13.62]
[1740734691003,5.7337,131.65,131.5,13.62]
[1740734691807,5.7337,131.65,131.56,0.05037129]
[1740734692008,0.05234597,131.59,131.56,0.05037129]
[1740734692310,5.7337,131.65,131.6,7.6043]
[1740734692810,0.0535842,131.64,131.6,7.6043]
[1740734693204,0.0535842,131.64,131.61,0.04819439]
[1740734695812,0.0535842,131.64,131.51,1.8267]
[1740734695813,7.6039,131.62,131.51,1.8267]
[1740734696212,7.6039,131.62,131.55,7.6072]
[1740734696510,7.6041,131.61,131.55,7.6072]
[1740734696711,5.7337,131.65,131.51,1.8267]
[1740734697114,0.04899082,131.59,131.57,0.05070809]
[1740734697412,3.7441,131.65,131.6,7.6042]
[1740734698010,3.7441,131.65,131.51,1.8267]
[1740734698211,206.8,131.67,131.52,1.38726969]
[1740734698519,1.9664,131.69,131.57,0.05223577]
[1740734698715,25.87729294,131.76,131.58,13.56]
[1740734699018,1.9664,131.75,131.59,3.8926]
[1740734699214,9.5626,131.75,131.67,7.6002]
[1740734699717,0.05182564,131.72,131.7,0.05803162]
[1740734702618,3.85182564,131.72,131.59,1.6815]
[1740734702911,190.0,131.71,131.57,116.45807699]
[1740734703115,7.6024,131.64,131.57,124.06437699]
[1740734703514,7.6035,131.62,131.55,7.6074]
[1740734703811,7.6035,131.62,131.54,43.66664206]
[1740734703812,190.057022,131.62,131.59,0.04877717]
[1740734704017,7.6046,131.61,131.53,7.6086]
[1740734704216,190.0,131.6,131.51,10.42126051]
[1740734704515,13.5,131.6,131.51,10.42126051]
[1740734704718,190.0,131.59,131.51,10.42126051]
[1740734704916,190.0,131.58,131.51,10.42126051]
[1740734705211,0.04862276,131.56,131.54,0.05498996]
[1740734705414,190.0,131.55,131.51,10.42126051]
[1740734705605,191.9185,131.55,131.51,10.42126051]
[1740734706012,190.0,131.54,131.5,31.26378155]
[1740734706217,190.0,131.53,131.5,16.12208155]
[1740734706417,1.9185,131.55,131.5,13.60158155]
[1740734706617,1.9185,131.55,131.5,13.65949855]
[1740734706618,0.05070325,131.53,131.5,13.65949855]
[1740734706817,13.55070325,131.53,131.5,13.65949855]
[1740734707019,13.55070325,131.53,131.5,0.057917]
[1740734707219,0.05070325,131.53,131.5,0.057917]
[1740734713321,0.05070325,131.53,131.43,13.5]
[1740734713615,7.6083,131.54,131.48,7.6112]
[1740734714020,7.6083,131.54,131.43,13.5]
[1740734714416,0.0521753,131.5,131.49,7.6106]
[1740734714619,0.0521753,131.5,131.47,0.05529185]
[1740734714814,206.72,131.57,131.43,13.5]
[1740734715019,0.05684544,131.5,131.47,0.0483623]
[1740734715221,206.72,131.57,131.47,0.0483623]
[1740734715522,206.72,131.57,131.5,7.61]
[1740734716218,206.72,131.57,131.43,13.5]
[1740734716219,206.72,131.57,131.49,7.6109]
[1740734716423,206.72,131.57,131.43,13.5]
[1740734716623,0.05305252,131.55,131.52,0.04900643]
[1740734716814,206.72,131.57,131.43,13.5]
[1740734717019,0.05116741,131.55,131.52,0.05084842]
[1740734717220,13.48,131.63,131.43,13.5]
[1740734717221,7.6054,131.59,131.43,13.5]
[1740734717420,0.0547857,131.55,131.52,0.0515891]
[1740734717621,7.6048,131.6,131.54,7.608]
[1740734717819,13.48,131.63,131.43,13.5]
[1740734717820,0.05819489,131.55,131.43,13.5]
[1740734718015,207.53555794,131.65,131.44,208.22368477]
[1740734718323,206.84,131.65,131.45,18.13167583]
[1740734718520,206.84,131.65,131.46,2.90506009]
[1740734718727,206.84,131.65,131.47,1.38368477]
[1740734718926,206.84,131.65,131.47,3.36338477]
[1740734719116,206.84,131.65,131.48,1.38368477]
[1740734719316,0.0578383,131.57,131.55,0.05144136]
[1740734719719,206.84,131.65,131.47,1.9797]
[1740734719921,0.05628461,131.57,131.55,0.05452701]
[1740734720323,206.84,131.65,131.5,13.46]
[1740734720527,0.0553884,131.57,131.55,0.04997189]
[1740734720720,206.84,131.65,131.55,0.04997189]
[1740734720920,7.603,131.63,131.56,7.6064]
[1740734721526,7.6037,131.62,131.5,13.46]
[1740734721722,206.84,131.65,131.5,13.46]
[1740734721926,0.05034645,131.57,131.55,0.04803732]
[1740734722325,206.84,131.65,131.5,13.46]
[1740734722526,0.05312831,131.57,131.56,7.607]
[1740734722819,206.84,131.65,131.5,13.46]
[1740734723226,7.6033,131.63,131.5,13.46]
[1740734723425,206.84,131.65,131.5,13.46]
[1740734723830,214.4419,131.65,131.5,13.46]
[1740734724030,0.05217753,131.59,131.57,7.6064]
[1740734724231,214.4419,131.65,131.5,13.46]
[1740734724525,6.416e-05,131.59,131.57,0.04875423]
[1740734724829,7.7111,131.69,131.51,1.37952661]
[1740734725131,7.7111,131.69,131.62,7.6034]
[1740734725531,7.6001,131.68,131.62,7.6034]
[1740734725831,0.05616945,131.67,131.64,0.05646964]
[1740734726231,0.1112,131.69,131.61,7.6038]
[1740734726433,0.05058173,131.67,131.64,0.04989938]
[1740734726627,7.6012,131.66,131.52,1.9465]
[1740734726831,0.1112,131.69,131.52,1.9465]
[1740734727128,0.04975722,131.61,131.58,0.05829215]
[1740734727329,190.0,131.7,131.52,1.9465]
[1740734727532,0.2195,131.72,131.53,1.37976285]
[1740734727730,7.599,131.7,131.53,1.37976285]
[1740734727931,206.8,131.73,131.54,1.9506]
[1740734728138,206.8,131.73,131.55,1.37976285]
[1740734728426,63.37249448,131.76,131.56,1.52021891]
[1740734728734,0.2195,131.77,131.63,0.04824711]
[1740734729128,0.2195,131.77,131.58,1.37976285]
[1740734729129,0.2195,131.77,131.57,13.44]
[1740734729329,0.2195,131.77,131.59,1.8958]
[1740734729929,7.65542958,131.69,131.67,0.05615201]
[1740734730227,7.5999,131.69,131.62,7.6035]
[1740734730735,0.05501845,131.69,131.59,1.8958]
[1740734731232,0.2195,131.77,131.64,0.05837695]
[1740734731537,0.05398646,131.65,131.59,1.8958]
[1740734731836,0.05149231,131.72,131.69,0.05282173]
[1740734732130,7.599,131.7,131.63,7.6025]
[1740734732336,7.599,131.7,131.69,0.05834106]
[1740734732537,7.5996,131.69,131.62,7.6033]
[1740734732731,7.5996,131.69,131.68,0.00522241]
[1740734732937,13.42,131.73,131.59,1.8958]
[1740734733633,7.5989,131.7,131.64,7.6019]
[1740734733834,0.05800195,131.67,131.65,0.05418207]
[1740734734241,7.5985,131.71,131.59,1.8958]
[1740734734438,0.05652542,131.67,131.65,0.05553459]
[1740734736642,0.05652542,131.67,131.59,1.8958]
[1740734736944,13.42,131.73,131.59,1.8958]
[1740734737743,13.42,131.73,131.65,0.05122174]
[1740734737744,0.04831917,131.67,131.65,0.05122174]
[1740734738141,13.42,131.73,131.59,1.8958]
[1740734738341,0.05563834,131.67,131.65,0.05578264]
[1740734738742,0.2195,131.77,131.59,1.8958]
[1740734738946,0.05059971,131.67,131.65,0.05583032]
[1740734739133,0.05059971,131.67,131.59,1.8958]
[1740734739335,206.76,131.81,131.65,0.04977151]
[1740734739649,0.114,131.8,131.72,0.05504699]
[1740734739840,0.114,131.8,131.72,7.65234699]
[1740734740042,206.76,131.81,131.67,3.7347]
[1740734740348,7.7058,131.83,131.74,7.5962]
[1740734740550,0.114,131.83,131.68,1.9544]
[1740734740745,0.0569796,131.8,131.77,0.05400247]
[1740734741039,0.1102,131.84,131.76,7.595]
[1740734741242,0.05397491,131.8,131.77,0.04852603]
[1740734741647,0.05397491,131.8,131.78,7.5938]
[1740734741948,0.05397491,131.8,131.78,1.8181]
[1740734743341,10.49539294,131.86,131.78,1.8181]
[1740734743746,7.5891,131.87,131.78,1.8181]
[1740734744140,206.8684,131.89,131.78,1.8181]
[1740734744347,7.5897,131.86,131.78,1.8181]
[1740734744547,0.058146,131.85,131.82,0.05266354]
[1740734745748,7.5909,131.84,131.82,0.05266354]
[1740734746046,0.058146,131.85,131.82,0.05266354]
[1740734752344,7.5913,131.84,131.82,0.05266354]
[1740734752643,17.258146,131.85,131.75,2.64731381]
[1740734752844,0.1715,131.84,131.75,2.64731381]
[1740734753249,0.1715,131.84,131.75,0.80751381]
[1740734753942,7.5937,131.79,131.78,0.04937026]
[1740734754143,0.05839833,131.81,131.75,0.80751381]
[1740734754456,7.5954,131.76,131.75,0.62791381]
[1740734754646,7.5954,131.76,131.75,1.381e-05]
[1740734754950,11.3954,131.76,131.75,1.381e-05]
[1740734755249,11.3954,131.76,131.57,30.27827932]
[1740734755250,22.82,131.75,131.57,30.27827932]
[1740734755446,7.6025,131.64,131.57,30.27827932]
[1740734755749,99.0,131.63,131.57,30.27827932]
[1740734757044,206.48,131.65,131.57,30.27827932]
[1740734757045,0.04881259,131.61,131.59,0.05463838]
[1740734759642,0.04881259,131.61,131.5,1.9963]
[1740734760044,206.48,131.65,131.5,1.9963]
[1740734760245,206.48,131.65,131.5,9.6067]
[1740734760553,206.48,131.65,131.5,1.9963]
[1740734760949,269.93111651,131.75,131.57,0.04865397]
[1740734761154,269.93111651,131.75,131.58,13.48]
[1740734761352,269.93111651,131.75,131.59,5.9702]
[1740734761648,7.5972,131.73,131.59,5.9702]
[1740734761853,269.93111651,131.75,131.59,5.9702]
[1740734762246,7.5983,131.72,131.66,0.05306397]
[1740734762451,0.05621474,131.68,131.66,0.05306397]
[1740734762647,206.56,131.75,131.59,5.9702]
[1740734762845,0.04846437,131.68,131.66,0.05394243]
[1740734763146,13.52,131.72,131.59,5.9702]
[1740734763464,0.04821278,131.68,131.66,0.05549248]
[1740734764859,0.04821278,131.68,131.59,5.9702]
[1740734765158,7.5948,131.78,131.6,13.54]
[1740734765359,206.66,131.83,131.6,13.54]
[1740734765552,13.54,131.82,131.6,13.54]
[1740734765858,13.54,131.81,131.61,1.38148995]
[1740734766460,13.54,131.81,131.6,13.54]
[1740734766660,0.05253392,131.72,131.7,0.04983138]
[1740734767054,13.54,131.81,131.6,13.54]
[1740734767253,0.05503375,131.72,131.7,0.05407504]
[1740734767662,7.5953,131.77,131.66,7.6011]
[1740734767857,0.05016384,131.72,131.7,0.05824159]
[1740734768063,13.54,131.71,131.7,0.00724159]
[1740734768253,13.54,131.71,131.59,5.9702]
[1740734768654,22.82,131.7,131.59,2.0038]
[1740734768964,13.54,131.71,131.59,2.0038]
[1740734769366,0.04872195,131.66,131.63,0.05560789]
[1740734769660,0.04872195,131.66,131.55,3.8981]
[1740734769864,0.04872195,131.66,131.51,13.54]
[1740734769865,22.82,131.64,131.52,10.10765374]
[1740734770060,226.36,131.63,131.52,10.10765374]
[1740734770260,36.36,131.63,131.52,10.10765374]
[1740734770965,7.6051,131.6,131.53,7.6086]
[1740734771160,0.05164736,131.59,131.56,0.05732361]
[1740734774566,7.65694736,131.59,131.56,0.05732361]
[1740734774768,0.05164736,131.59,131.56,0.05732361]
[1740734777563,190.0,131.58,131.48,5.8592]
[1740734777767,13.5,131.59,131.48,5.8592]
[1740734777968,7.6082,131.54,131.48,5.8592]
[1740734778273,13.5,131.59,131.48,5.8592]
[1740734778572,13.5,131.59,131.48,1.9297]
[1740734778761,0.05271019,131.55,131.52,0.05812424]
[1740734780865,22.82,131.69,131.52,0.05812424]
[1740734781065,36.32,131.73,131.5,1.3845595]
[1740734781271,190.0,131.73,131.5,1.52091254]
[1740734781472,7.599,131.7,131.5,1.52091254]
[1740734781665,7.599,131.7,131.51,1.38311904]
[1740734781977,220.28,131.75,131.52,1.52068126]
[1740734782169,220.28,131.75,131.59,0.05640681]
[1740734782170,7.5972,131.73,131.59,0.05640681]
[1740734782370,220.28,131.75,131.6,13.5]
[1740734782573,220.28,131.75,131.61,3.6871]
[1740734783170,206.78,131.75,131.61,3.6871]
[1740734783376,0.05492499,131.69,131.67,0.05639945]
[1740734783680,206.78,131.75,131.61,3.6871]
[1740734783977,0.048836,131.69,131.67,0.05388691]
[1740734784177,0.048836,131.69,131.54,13.5]
[1740734784378,13.5,131.7,131.55,5.9532]
[1740734785374,0.05393261,131.64,131.61,0.0542938]
[1740734785674,13.5,131.7,131.55,5.9532]
[1740734785872,7.6606681,131.64,131.61,0.04979776]
[1740734786073,0.0577681,131.64,131.61,0.04979776]
[1740734786375,7.6507502,131.64,131.61,0.04911125]
[1740734786880,0.0478502,131.64,131.61,0.04911125]
[1740734787685,13.5,131.63,131.61,1.125e-05]
[1740734787974,36.32,131.63,131.61,1.125e-05]
[1740734788174,7.6035,131.62,131.61,1.125e-05]
[1740734788573,11.4035,131.62,131.61,1.125e-05]
[1740734789080,13.5,131.63,131.61,1.125e-05]
[1740734789581,7.6035,131.62,131.56,7.6065]
[1740734789779,22.82,131.7,131.51,13.5]
[1740734789979,76.89798235,131.71,131.52,1.9601]
[1740734790275,206.76,131.72,131.52,196.9601]
[1740734790671,0.05668458,131.63,131.58,7.6054]
[1740734790877,206.76,131.72,131.61,0.04920115]
[1740734791176,206.76,131.72,131.59,1.9561]
[1740734791177,7.5966,131.74,131.63,7.6024]
[1740734791383,55.20365913,131.79,131.6,3.9909]
[1740734791582,10.42091478,131.76,131.6,3.9909]
[1740734791974,10.42091478,131.76,131.67,0.0513036]
[1740734792377,7.5961,131.75,131.6,3.9909]
[1740734792574,0.05334341,131.73,131.7,0.05139297]
[1740734792878,0.04850116,131.73,131.7,0.05447788]
[1740734798089,3.84850116,131.73,131.61,1.9637]
[1740734798286,13.52,131.72,131.61,1.9637]
[1740734798485,7.5996,131.69,131.62,7.6034]
[1740734798789,7.5996,131.69,131.61,1.9637]
[1740734798790,13.52,131.72,131.61,1.9637]
[1740734799189,0.04955101,131.68,131.65,0.0525793]
[1740734800387,7.6012,131.66,131.65,0.0525793]
[1740734800797,0.04955101,131.68,131.48,205.10765374]
[1740734801093,206.68,131.7,131.53,3.8886]
[1740734801290,7.6019,131.65,131.58,7.6058]
[1740734801594,206.68,131.7,131.53,3.8886]
[1740734801999,0.04826175,131.63,131.6,0.05069334]
[1740734802488,0.04912279,131.63,131.6,0.0497722]
[1740734802993,206.68,131.7,131.6,0.0497722]
[1740734803290,206.68,131.7,131.54,13.52]
[1740734803486,7.6022,131.65,131.58,7.6054]
[1740734803691,206.68,131.7,131.54,13.52]
[1740734803892,7.6039,131.62,131.55,7.6075]
[1740734804091,229.5,131.7,131.55,7.6075]
[1740734804293,229.5,131.7,131.54,13.52]
[1740734804294,0.05389235,131.6,131.57,0.05126027]
[1740734804497,7.6039,131.62,131.56,7.6069]
[1740734804693,0.0496081,131.6,131.57,0.05341715]
[1740734806693,206.68,131.7,131.57,0.05341715]
[1740734806898,206.68,131.7,131.54,13.52]
[1740734807901,0.0493322,131.63,131.61,0.0479752]
[1740734808197,7.6023,131.65,131.54,13.52]
[1740734808398,0.05396538,131.63,131.61,0.05549407]
[1740734808600,0.05396538,131.63,131.54,13.52]
[1740734808799,0.05396538,131.63,131.61,0.05300785]
[1740734809099,0.04895179,131.63,131.58,7.6054]
[1740734809403,0.04895179,131.63,131.61,0.05117692]
[1740734809700,206.68,131.7,131.6,1.8995]
[1740734809897,0.05466572,131.63,131.61,0.05332894]
[1740734810098,7.6011,131.67,131.6,9.5041]
[1740734810289,0.04990298,131.63,131.61,0.0495784]
[1740734810490,7.6035,131.62,131.61,0.0495784]
[1740734811400,7.6035,131.62,131.55,7.6075]
[1740734811601,7.6041,131.61,131.55,7.6075]
[1740734811897,13.48,131.65,131.53,1.9239]
[1740734812402,190.0,131.64,131.53,1.9239]
[1740734812699,190.0,131.64,131.58,0.05090299]
[1740734812700,0.05392188,131.6,131.58,0.05090299]
[1740734813104,7.6052,131.59,131.58,0.05090299]
[1740734813600,0.05392188,131.6,131.52,7.6091]
[1740734813803,212.82,131.64,131.52,7.6091]
[1740734814402,212.82,131.64,131.54,7.608]
[1740734814593,0.1116,131.66,131.54,7.608]
[1740734814800,0.05338919,131.6,131.59,7.6052]
[1740734815003,7.6014,131.66,131.52,13.5]
[1740734815502,7.6019,131.65,131.52,13.5]
[1740734816198,0.05192888,131.6,131.58,7.6054]
[1740734816399,7.6019,131.65,131.52,13.5]
[1740734816595,0.05238617,131.6,131.58,7.66375592]
[1740734816799,190.0,131.69,131.58,0.05825592]
[1740734817100,190.0,131.69,131.52,13.5]
[1740734817296,7.6013,131.66,131.52,13.5]
[1740734817699,190.0,131.69,131.52,13.5]
[1740734817900,0.05136947,131.6,131.58,0.05294781]
[1740734818101,190.0,131.69,131.52,13.5]
[1740734818297,0.05602377,131.6,131.58,0.05255332]
[1740734818600,190.0,131.69,131.52,13.5]
[1740734818798,7.6029,131.64,131.57,7.6063]
[1740734819102,0.05122298,131.62,131.59,0.05207618]
[1740734819306,7.6028,131.64,131.57,7.6063]
[1740734819597,0.05664047,131.62,131.59,0.05483978]
[1740734820901,7.6002,131.68,131.59,0.05483978]
[1740734821101,206.68,131.7,131.53,1.38188647]
[1740734821504,7.6001,131.68,131.52,13.46]
[1740734821807,7.6001,131.68,131.62,7.6034]
[1740734822196,0.04919252,131.66,131.64,0.05548166]
[1740734822402,206.68,131.7,131.53,313.49014315]
[1740734822604,0.04985788,131.66,131.64,0.05417672]
[1740734822799,13.46,131.66,131.54,1.38206756]
[1740734823000,13.46,131.66,131.53,118.49014315]
[1740734823397,7.6031,131.63,131.55,7.6074]
[1740734824007,0.05122712,131.6,131.58,0.05456993]
[1740734825399,7.6021,131.65,131.58,7.66026993]
[1740734825699,212.82,131.69,131.53,131.95014315]
[1740734825909,190.0,131.68,131.53,131.95014315]
[1740734826106,190.0,131.68,131.54,1.9354]
[1740734826507,7.6002,131.68,131.62,7.6035]
[1740734826809,0.05691467,131.66,131.54,1.9354]
[1740734827003,7.5999,131.69,131.64,0.05203167]
[1740734827199,63.58470019,131.75,131.54,196.9354]
[1740734827401,0.05759628,131.68,131.65,0.05687786]
[1740734827605,248.42365913,131.78,131.64,1.9706]
[1740734828208,41.68365913,131.78,131.64,403.7106]
[1740734828408,41.68365913,131.78,131.65,1.37740901]
[1740734828812,0.05811153,131.73,131.71,7.5981]
[1740734829010,41.68365913,131.78,131.7,0.05127549]
[1740734829310,49.27805913,131.78,131.69,7.5993]
[1740734829515,49.27805913,131.78,131.64,403.7106]
[1740734829808,7.5944,131.78,131.69,7.5995]
[1740734830016,7.5944,131.78,131.64,403.7106]
[1740734830206,0.05750966,131.75,131.72,0.05468641]
[1740734830412,7.593,131.81,131.72,0.05468641]
[1740734830615,0.05163558,131.75,131.72,0.05468641]
[1740734830818,13.9523,131.82,131.65,1.8783]
[1740734831006,0.05736227,131.75,131.65,1.8783]
[1740734831308,41.68365913,131.86,131.69,0.04782466]
[1740734831513,41.68365913,131.86,131.7,13.58]
[1740734831910,41.68365913,131.86,131.7,208.58]
[1740734832109,41.68365913,131.86,131.71,1.37314402]
[1740734832310,41.68365913,131.86,131.71,196.37314402]
[1740734832615,41.68365913,131.86,131.72,3.25144402]
[1740734832915,0.05469811,131.8,131.77,0.05638607]
[1740734833414,0.05194032,131.8,131.77,0.0506487]
[1740734834514,396.74,131.9,131.77,0.0506487]
[1740734834713,7.589,131.88,131.81,7.5925]
[1740734835113,0.13,131.92,131.77,13.74]
[1740734835512,0.05324342,131.86,131.83,0.0502887]
[1740734835712,10.42091478,131.96,131.83,0.0502887]
[1740734835909,10.42091478,131.96,131.78,1.37088582]
[1740734836214,10.42091478,131.96,131.77,13.74]
[1740734836215,10.53821478,131.96,131.79,1.871]
[1740734836414,7.5852,131.94,131.87,7.5891]
[1740734836718,0.1173,131.96,131.79,1.871]
[1740734836917,0.05169275,131.92,131.91,7.5868]
[1740734837118,0.1173,132.01,131.84,13.8]
[1740734838123,0.1173,132.01,131.88,7.588]
[1740734838314,0.05165389,131.94,131.91,0.05566756]
[1740734838513,41.81365913,132.02,131.91,0.05566756]
[1740734838514,41.68365913,132.02,131.91,0.05566756]
[1740734838711,41.68365913,132.02,131.91,13.84]
[1740734838916,41.68365913,132.02,131.92,1.9226]
[1740734839723,0.05158073,131.98,131.96,7.6347421]
[1740734840017,0.05158073,131.98,131.96,0.0508421]
[1740734841015,206.6689,132.06,131.96,0.0508421]
[1740734841216,206.5,132.06,131.98,7.5827]
[1740734841527,206.5,132.06,131.92,1.9226]
[1740734841712,206.5,132.06,131.94,7.5846]
[1740734841917,206.5,132.06,131.92,1.9226]
[1740734842319,0.03240406,132.01,131.99,0.05732611]
[1740734842615,206.5,132.06,131.99,0.05732611]
[1740734842814,0.03240406,132.01,131.99,0.05732611]
[1740734843020,0.03240406,132.01,131.92,3.7846]
[1740734843216,206.5,132.06,131.92,3.7846]
[1740734844031,7.5806,132.02,131.92,3.7846]
[1740734844215,206.5,132.06,131.98,0.05505716]
[1740734844417,0.05639829,132.0,131.98,0.05505716]
[1740734844616,206.5,132.06,131.92,3.7846]
[1740734844617,190.0,132.05,131.92,3.7846]
[1740734844919,0.05698028,132.0,131.98,0.05359109]
[1740734845320,206.5,132.06,131.92,3.7846]
[1740734845517,0.05260219,132.0,131.98,0.0547167]
[1740734845719,7.5822,131.99,131.92,9.5088]
[1740734845919,190.0,132.03,131.92,1.9226]
[1740734846318,7.5812,132.01,131.94,7.5846]
[1740734846523,190.0,132.03,131.92,1.9226]
[1740734846828,7.5818,132.0,131.93,7.5852]
[1740734847124,0.05168,131.99,131.96,0.05300401]
[1740734847318,7.63428,131.99,131.96,0.05300401]
[1740734847519,0.05168,131.99,131.96,0.05300401]
[1740734847914,7.63428,131.99,131.88,1.9822]
[1740734848120,0.05168,131.99,131.88,1.9822]
[1740734848321,190.0,132.03,131.88,1.9822]
[1740734848620,206.5,132.06,131.96,7.5835]
[1740734849021,206.5,132.06,131.95,7.5844]
[1740734849218,0.05435606,132.02,132.0,0.05277692]
[1740734849623,7.5805,132.02,131.96,7.5835]
[1740734849822,0.04812958,132.02,132.0,0.051699]
[1740734850616,0.04812958,132.02,131.95,7.5841]
[1740734850817,0.04812958,132.02,131.88,1.9822]
[1740734851017,206.5,132.06,131.88,1.9822]
[1740734851228,7.5799,132.03,131.97,7.583]
[1740734851416,7.5799,132.03,131.88,1.9822]
[1740734851623,206.5,132.06,131.89,1.37116131]
[1740734851824,0.1282,132.08,131.94,0.04825796]
[1740734852025,0.1282,132.08,131.94,13.94825796]
[1740734852226,0.1282,132.08,131.95,1.9252]
[1740734853122,0.1282,132.08,132.0,0.05503095]
[1740734853123,0.05581971,132.03,132.0,0.05503095]
[1740734853322,7.581,132.02,132.0,0.05503095]
[1740734853525,7.581,132.02,131.96,7.5837]
[1740734853824,7.581,132.01,132.0,0.04978887]
[1740734854127,0.05661363,132.0,131.9,1.9252]
[1740734854525,0.1282,132.08,131.9,1.9252]